bitfinex-derivatives/quotes_SOLF0:USTF0_20250127
["timestamp","ask_amount","ask_price","bid_price","bid_amount"]
[1737945084078,4.2883,233.32,233.3,0.02967864]
[1737945085086,0.02856962,233.35,233.3,0.02967864]
[1737945085380,4.2867,233.41,233.3,0.02967864]
[1737945086085,27.50672806,233.5,233.3,0.02967864]
[1737945086278,27.50672806,233.43,233.3,0.02967864]
[1737945086579,27.50672806,233.39,233.28,4.2889]
[1737945086774,27.50672806,233.39,233.34,0.02794048]
[1737945087180,27.53735801,233.39,233.34,0.02794048]
[1737945087380,4.2877,233.35,233.34,0.02794048]
[1737945095784,16.93514827,233.38,233.17,16.93514827]
[1737945095984,16.93514827,233.38,233.13,16.93514827]
[1737945096180,16.93514827,233.38,233.14,0.78682936]
[1737945096390,16.93514827,233.38,233.17,16.93514827]
[1737945096585,4.2887,233.3,233.18,6.274]
[1737945096886,16.93514827,233.38,233.18,6.274]
[1737945097188,0.02843711,233.26,233.22,0.02970009]
[1737945097588,4.2892,233.27,233.22,4.29]
[1737945097794,0.02782328,233.26,233.22,0.03049956]
[1737945098090,4.2909,233.18,233.09,16.93514827]
[1737945098282,3.98,233.34,233.13,16.93514827]
[1737945098481,25.50984827,233.38,233.13,16.93514827]
[1737945098788,25.50984827,233.38,233.17,16.93514827]
[1737945099088,0.03283533,233.3,233.25,0.02822638]
[1737945099782,4.2892,233.27,233.25,0.02822638]
[1737945101691,4.2907,233.19,233.13,4.2917]
[1737945102086,4.2907,233.19,233.11,1.9713]
[1737945102591,4.2892,233.27,233.11,18.90644827]
[1737945102789,0.03278271,233.17,233.13,0.0312561]
[1737945103094,4.2892,233.27,233.25,4.2895]
[1737945103591,4.2877,233.35,233.26,2.4633]
[1737945103792,4.2877,233.35,233.27,1.8911]
[1737945104297,0.02945218,233.33,233.32,4.2882]
[1737945104591,4.2877,233.35,233.29,0.03132366]
[1737945104592,4.2877,233.35,233.29,4.32012366]
[1737945104893,4.2879,233.34,233.29,0.03132366]
[1737945105289,4.2881,233.33,233.29,0.03132366]
[1737945105588,0.03184486,233.33,233.29,0.03132366]
[1737945105790,4.2885,233.31,233.29,0.03132366]
[1737945108492,8.5747,233.38,233.29,0.03132366]
[1737945108895,8.5747,233.38,233.33,4.2881]
[1737945109193,4.287,233.39,233.3,4.0102]
[1737945109799,0.03126441,233.37,233.3,4.0102]
[1737945110092,0.5226,233.39,233.3,4.0102]
[1737945110293,18.93244827,233.52,233.3,4.0102]
[1737945110598,18.93244827,233.52,233.31,16.93514827]
[1737945110793,16.93514827,233.52,233.31,16.93514827]
[1737945111091,16.93514827,233.52,233.3,4.0102]
[1737945111295,0.02966083,233.44,233.39,0.02770285]
[1737945111696,16.93514827,233.47,233.3,4.0102]
[1737945111894,0.02758137,233.44,233.39,0.03071839]
[1737945112494,0.02758137,233.44,233.42,4.2864]
[1737945112902,16.93514827,233.55,233.39,0.03071839]
[1737945113104,16.93514827,233.51,233.32,0.78630006]
[1737945113300,16.93514827,233.51,233.3,4.0102]
[1737945113501,16.93514827,233.51,233.31,12.6370958]
[1737945113698,16.93514827,233.51,233.3,4.0102]
[1737945113899,16.93514827,233.51,233.31,0.78630329]
[1737945114203,0.03027633,233.43,233.38,0.02942766]
[1737945115200,0.03027633,233.43,233.42,4.2864]
[1737945116508,4.284,233.56,233.38,20.88457593]
[1737945116702,4.284,233.56,233.39,11.85078353]
[1737945117004,4.284,233.56,233.4,11.85078353]
[1737945117199,4.284,233.56,233.51,4.2847]
[1737945117699,4.3166435,233.56,233.51,4.31436993]
[1737945118105,4.2845,233.53,233.51,0.02966993]
[1737945118405,16.96779177,233.56,233.51,0.02966993]
[1737945118796,4.2846,233.52,233.51,0.02966993]
[1737945119805,0.0326435,233.56,233.54,4.2842]
[1737945120605,0.0326435,233.56,233.51,0.02966993]
[1737945121007,4.2824,233.65,233.63,4.2826]
[1737945121901,4.2824,233.65,233.54,2.3532]
[1737945121902,8.5639,233.67,233.66,4.282]
[1737945122209,0.02920281,233.69,233.66,21.21714827]
[1737945122405,21.4021,233.76,233.68,4.2806]
[1737945122610,21.4021,233.76,233.7,16.93514827]
[1737945122911,15.44121388,233.77,233.75,4.2802]
[1737945123611,15.44121388,233.77,233.74,0.02773466]
[1737945124509,19.72131388,233.77,233.74,0.02773466]
[1737945124811,19.72131388,233.77,233.61,80.18]
[1737945125006,19.72131388,233.77,233.64,16.93514827]
[1737945125401,32.37636215,233.77,233.48,22.55680165]
[1737945125711,16.93514827,233.69,233.49,16.93514827]
[1737945126014,4.2827,233.63,233.49,16.93514827]
[1737945126209,4.2827,233.63,233.59,4.2832]
[1737945126410,4.2827,233.63,233.57,0.03147475]
[1737945126611,0.03038834,233.58,233.57,0.03147475]
[1737945126816,0.03038834,233.58,233.57,4.31517475]
[1737945127008,4.281,233.72,233.57,0.03147475]
[1737945127312,0.027213,233.6,233.55,27.45197768]
[1737945127607,4.281,233.72,233.68,4.2815]
[1737945127808,4.281,233.72,233.62,0.03205924]
[1737945128008,4.281,233.72,233.7,4.2812]
[1737945128212,0.02947443,233.72,233.7,4.2812]
[1737945134026,21.4013,233.76,233.75,4.2804]
[1737945135122,21.4013,233.76,233.73,0.03195676]
[1737945135922,4.2804,233.75,233.73,0.03195676]
[1737945137025,4.2806,233.74,233.73,0.03195676]
[1737945137226,21.4013,233.76,233.65,4.2822]
[1737945137417,24.7894,233.76,233.56,1.4326]
[1737945137616,24.7894,233.76,233.59,27.45197768]
[1737945137617,4.2811,233.72,233.59,27.45197768]
[1737945137816,4.2811,233.72,233.68,4.2815]
[1737945138017,21.4013,233.76,233.56,2.7296]
[1737945138222,4.2814,233.7,233.56,2.7296]
[1737945138423,4.31093211,233.7,233.66,0.0288514]
[1737945138829,4.2815,233.69,233.66,0.0288514]
[1737945139023,27.45197768,233.69,233.51,1.9404]
[1737945139327,4.2832,233.6,233.54,4.2842]
[1737945139521,4.2832,233.6,233.46,1.4813]
[1737945140130,4.2834,233.59,233.46,1.4813]
[1737945140331,0.03035192,233.55,233.51,0.02805002]
[1737945141020,4.2843,233.54,233.51,0.02805002]
[1737945141429,4.2843,233.54,233.52,4.2845]
[1737945141931,4.2843,233.54,233.51,0.02805002]
[1737945141932,0.03035192,233.55,233.51,0.02805002]
[1737945142227,0.03035192,233.55,233.54,4.2842]
[1737945142530,0.03035192,233.55,233.51,0.02805002]
[1737945143521,27.4823296,233.55,233.35,1.3587]
[1737945143726,27.45197768,233.51,233.3,30.99397768]
[1737945144028,4.2854,233.48,233.43,4.2862]
[1737945144230,4.2854,233.48,233.31,0.786275]
[1737945144532,4.2854,233.48,233.41,4.2866]
[1737945144727,0.03294699,233.42,233.41,4.2866]
[1737945145032,4.2854,233.48,233.45,4.2858]
[1737945145730,4.2854,233.48,233.44,0.02854356]
[1737945145933,4.2854,233.48,233.3,30.99397768]
[1737945146127,4.2854,233.48,233.31,0.78625098]
[1737945146325,0.02796441,233.41,233.37,0.02911187]
[1737945146727,27.45197768,233.55,233.31,2.0719]
[1737945146933,0.02940312,233.41,233.37,0.02885704]
[1737945147434,0.03177273,233.41,233.37,0.02825095]
[1737945148335,4.31847273,233.41,233.37,0.02825095]
[1737945148725,0.03177273,233.41,233.37,0.02825095]
[1737945148930,4.2883,233.32,233.19,1.8988]
[1737945149235,4.2883,233.32,233.19,3.3426]
[1737945149429,27.45197768,233.39,233.16,27.45197768]
[1737945149633,2.056,233.31,233.16,27.45197768]
[1737945150031,0.02745044,233.26,233.21,0.03144729]
[1737945150923,4.2896,233.25,233.21,0.03144729]
[1737945153126,0.02745044,233.26,233.04,27.45197768]
[1737945153330,1.5212,233.24,233.04,27.45197768]
[1737945154235,1.5212,233.24,233.05,2.0059]
[1737945154440,0.02717325,233.16,233.12,0.0304096]
[1737945155135,4.31837325,233.16,233.14,4.2915]
[1737945156333,4.31837325,233.16,233.12,4.3223096]
[1737945156734,4.31837325,233.16,233.13,4.2917]
[1737945157534,4.31837325,233.16,233.15,4.2914]
[1737945158931,0.02717325,233.16,233.15,4.2914]
[1737945161540,4.3626,233.31,233.14,16.95040394]
[1737945162236,4.3626,233.31,233.09,1.5375]
[1737945162640,0.03240097,233.22,233.18,0.03089906]
[1737945162942,16.95040394,233.24,232.97,3.92]
[1737945163243,4.2913,233.16,233.15,4.291]
[1737945163742,4.2913,233.16,233.04,16.95040394]
[1737945164140,0.0317201,233.13,233.08,0.03059675]
[1737945164534,0.0317201,233.13,233.09,4.2924]
[1737945164934,0.0317201,233.13,233.08,0.03059675]
[1737945165132,0.0317201,233.13,233.09,4.2924]
[1737945165339,0.0317201,233.13,233.08,0.03059675]
[1737945165735,0.0317201,233.13,233.1,4.2922]
[1737945166042,0.0317201,233.13,233.08,0.03059675]
[1737945167237,0.0317201,233.13,233.0,16.95040394]
[1737945167542,0.0317201,233.13,232.96,18.33820394]
[1737945167739,4.2926,233.09,232.96,18.33820394]
[1737945168342,0.03262551,233.05,233.0,0.02791444]
[1737945169445,0.03262551,233.05,233.03,4.2936]
[1737945170140,4.2914,233.15,233.13,4.2916]
[1737945170546,1.4186,233.22,233.04,16.95040394]
[1737945170744,1.4186,233.22,233.17,4.291]
[1737945170946,1.4186,233.22,233.05,1.3623]
[1737945171147,4.2899,233.23,233.21,4.2901]
[1737945172043,4.2899,233.23,233.21,4.2903]
[1737945172450,4.2899,233.23,233.2,0.03263373]
[1737945172648,0.03278683,233.24,233.23,4.2899]
[1737945172850,0.03278683,233.24,233.2,0.03263373]
[1737945174647,4.2885,233.31,233.2,0.03263373]
[1737945174848,4.2885,233.31,233.2,16.98303767]
[1737945175050,16.95040394,233.41,233.2,16.98303767]
[1737945175051,4.2864,233.43,233.3,4.2871]
[1737945175550,1.3821,233.47,233.45,4.2858]
[1737945175851,1.3821,233.47,233.33,16.95040394]
[1737945176146,1.3821,233.47,233.44,0.0281861]
[1737945176447,1.3821,233.47,233.25,16.95040394]
[1737945176746,4.2866,233.42,233.25,16.95040394]
[1737945177446,4.2866,233.42,233.39,4.2869]
[1737945177642,4.2866,233.42,233.25,16.95040394]
[1737945177846,4.2866,233.42,233.38,0.03188493]
[1737945178844,0.02746462,233.43,233.38,0.03188493]
[1737945179048,16.95040394,233.4,233.17,20.87040394]
[1737945179247,16.95040394,233.36,233.17,20.87040394]
[1737945179445,4.2882,233.33,233.17,20.87040394]
[1737945179654,16.95040394,233.4,233.22,16.95040394]
[1737945180049,4.2868,233.4,233.29,0.03258226]
[1737945180250,0.02882004,233.33,233.29,0.03258226]
[1737945180446,29.80670394,233.48,233.41,4.2864]
[1737945180649,12.8563,233.48,233.34,16.95040394]
[1737945180847,12.8563,233.48,233.35,1.3753]
[1737945181157,12.8563,233.48,233.38,16.95040394]
[1737945181553,12.8563,233.48,233.42,16.95040394]
[1737945181757,12.8563,233.48,233.47,4.2855]
[1737945182254,21.39155931,233.51,233.47,4.2855]
[1737945182452,21.4232,233.52,233.5,21.23520394]
[1737945182653,21.4232,233.52,233.5,4.2848]
[1737945183155,20.4408,233.52,233.5,31.73667546]
[1737945183751,0.02786251,233.53,233.5,31.73667546]
[1737945183952,5.707548,233.62,233.52,27.45187546]
[1737945184158,8.5642,233.66,233.49,0.02919196]
[1737945184355,27.45187546,233.64,233.44,27.45187546]
[1737945184558,27.45187546,233.64,233.4,27.45187546]
[1737945184755,27.45187546,233.6,233.4,27.45187546]
[1737945185056,27.45187546,233.6,233.53,4.2844]
[1737945185255,4.2834,233.59,233.48,0.03278554]
[1737945185455,0.0323935,233.52,233.4,27.45187546]
[1737945185651,0.0323935,233.52,233.51,0.02891635]
[1737945185855,0.0323935,233.52,233.5,4.2849]
[1737945186356,0.0323935,233.52,233.46,4.2855]
[1737945186658,0.0323935,233.52,233.45,27.45187546]
[1737945186850,0.0323935,233.52,233.49,27.45187546]
[1737945187261,0.0323935,233.52,233.5,4.2849]
[1737945189160,8.5642,233.66,233.49,27.45187546]
[1737945189663,8.5642,233.66,233.49,21.76083667]
[1737945190354,0.02936252,233.6,233.55,0.02754395]
[1737945191158,0.02936252,233.6,233.59,4.2833]
[1737945191355,8.5642,233.66,233.57,27.45187546]
[1737945191564,8.5642,233.66,233.62,27.45187546]
[1737945192556,8.59240436,233.66,233.62,27.48309526]
[1737945193060,0.02820436,233.66,233.65,4.2822]
[1737945193259,42.8101,233.72,233.62,27.48309526]
[1737945193561,42.8101,233.72,233.67,27.45187546]
[1737945193761,42.8101,233.72,233.63,27.45187546]
[1737945194459,42.8101,233.72,233.67,27.45187546]
[1737945194656,0.03184867,233.7,233.68,4.2817]
[1737945198663,0.03184867,233.7,233.69,4.2815]
[1737945198957,0.03184867,233.7,233.65,0.02809513]
[1737945199162,0.03184867,233.7,233.68,4.2816]
[1737945199366,0.03184867,233.7,233.65,0.02809513]
[1737945199563,0.03184867,233.7,233.53,3.9]
[1737945199763,4.2815,233.69,233.64,4.2824]
[1737945200069,4.2815,233.69,233.53,3.9]
[1737945200763,0.02805103,233.63,233.59,0.02816697]
[1737945201566,0.02805103,233.63,233.48,27.45187546]
[1737945201766,0.02805103,233.63,233.52,4.2845]
[1737945201962,4.2826,233.63,233.48,27.45187546]
[1737945202358,4.2826,233.63,233.56,4.2838]
[1737945202570,27.45187546,233.69,233.44,27.45187546]
[1737945202761,27.45187546,233.65,233.44,27.45187546]
[1737945202968,27.45187546,233.61,233.4,31.35187546]
[1737945203168,4.2839,233.56,233.4,31.35187546]
[1737945203367,4.2839,233.56,233.52,4.2845]
[1737945204368,4.31169194,233.56,233.52,0.02898199]
[1737945204871,4.31169194,233.56,233.52,4.31348199]
[1737945205677,4.31169194,233.56,233.53,4.2844]
[1737945205877,4.31169194,233.56,233.52,0.02898199]
[1737945206170,4.31169194,233.56,233.48,4.2853]
[1737945206371,0.02779194,233.56,233.48,4.2853]
[1737945206571,27.45187546,233.57,233.36,27.45187546]
[1737945206978,4.2853,233.49,233.41,4.2866]
[1737945207281,27.45187546,233.53,233.32,27.45187546]
[1737945207579,0.0301951,233.47,233.43,0.03164405]
[1737945207879,4.2861,233.44,233.28,107.57187546]
[1737945208078,1.3809,233.43,233.32,27.45187546]
[1737945208574,5.6672,233.43,233.28,107.57187546]
[1737945208780,1.3272,233.42,233.28,107.57187546]
[1737945208977,0.02880074,233.38,233.33,4.31835143]
[1737945209178,0.02880074,233.38,233.33,0.03035143]
[1737945210676,0.02880074,233.38,233.24,27.45187546]
[1737945210876,0.02880074,233.38,233.2,27.45187546]
[1737945211181,4.2874,233.37,233.2,27.45187546]
[1737945211380,4.2874,233.37,233.24,27.45187546]
[1737945211979,0.02914584,233.33,233.28,0.02967346]
[1737945212179,0.02914584,233.33,233.28,27.48154892]
[1737945212379,0.02914584,233.33,233.32,4.2883]
[1737945212580,0.00046144,233.33,233.32,4.2883]
[1737945212781,27.45187546,233.56,233.32,27.45187546]
[1737945213078,4.2844,233.53,233.39,27.45187546]
[1737945213275,27.45187546,233.52,233.28,27.45187546]
[1737945213479,4.2859,233.45,233.28,27.45187546]
[1737945213674,27.45187546,233.52,233.28,27.45187546]
[1737945213883,4.2862,233.44,233.35,4.2877]
[1737945214184,0.03256545,233.42,233.38,0.02806054]
[1737945214483,27.45187546,233.52,233.38,0.02806054]
[1737945214683,0.03179385,233.42,233.38,0.02806054]
[1737945214984,27.45187546,233.48,233.28,27.45187546]
[1737945215490,27.45187546,233.44,233.2,27.45187546]
[1737945215784,4.2882,233.33,233.27,4.2892]
[1737945215975,1.3719,233.32,233.27,4.2892]
[1737945216179,1.3719,233.32,233.3,0.02885799]
[1737945216579,1.3719,233.32,233.2,27.45187546]
[1737945216781,1.3719,233.32,233.29,0.03089481]
[1737945217085,1.3719,233.32,233.2,27.45187546]
[1737945217283,1.3719,233.32,233.28,0.03157382]
[1737945217685,1.4046128,233.32,233.28,0.03157382]
[1737945217882,1.4046128,233.32,233.28,4.32057382]
[1737945218082,1.4046128,233.32,233.28,0.03157382]
[1737945218277,1.4046128,233.32,233.16,27.45187546]
[1737945218484,1.4046128,233.32,233.12,27.45187546]
[1737945218786,4.2896,233.25,233.12,27.45187546]
[1737945219585,4.2896,233.25,233.23,4.2898]
[1737945219785,4.2916,233.14,232.85,8.5937]
[1737945219983,0.03150703,233.22,233.0,10.35814553]
[1737945219984,27.45187546,233.13,233.0,10.35814553]
[1737945220386,4.2925,233.09,233.0,10.35814553]
[1737945220682,4.2925,233.09,232.95,27.45187546]
[1737945221083,0.0326564,233.07,233.02,0.02982742]
[1737945222182,4.2908,233.19,233.02,0.02982742]
[1737945222383,4.2908,233.19,233.03,27.45187546]
[1737945222784,4.291,233.18,233.03,27.45187546]
[1737945222992,4.291,233.18,233.0,0.0873]
[1737945222993,27.45187546,233.21,233.0,0.0873]
[1737945223379,4.2915,233.15,233.0,0.0873]
[1737945223582,0.0321061,233.13,233.08,0.02877953]
[1737945223986,4.2922,233.11,232.97,1.4165]
[1737945224189,4.2922,233.11,233.08,0.03203351]
[1737945224485,4.2922,233.11,232.99,27.45187546]
[1737945224785,4.2922,233.11,233.07,0.02878275]
[1737945225179,4.32042,233.11,233.07,0.02878275]
[1737945226081,4.2924,233.1,233.07,0.02878275]
[1737945227184,4.2926,233.09,233.07,0.02878275]
[1737945227381,4.2926,233.09,232.96,1.3471]
[1737945228087,4.2926,233.09,232.95,27.45187546]
[1737945228088,27.45187546,233.09,232.91,27.45187546]
[1737945228390,27.45187546,233.09,232.89,1.4137]
[1737945228592,0.03058368,233.02,232.98,0.0294995]
[1737945231685,0.03058368,233.02,232.86,16.97930073]
[1737945231891,0.03058368,233.02,232.82,16.97930073]
[1737945232091,16.97930073,233.03,232.81,16.97930073]
[1737945232287,16.97930073,233.03,232.82,1.3502]
[1737945233085,0.02730065,232.95,232.9,0.03288752]
[1737945233490,18.34660073,233.07,232.86,1.327]
[1737945233687,0.02728975,232.95,232.9,0.03119783]
[1737945233891,0.02728975,232.95,232.91,4.2957]
[1737945234090,4.2945,232.98,232.86,1.327]
[1737945234292,16.97930073,232.91,232.72,16.97930073]
[1737945234595,4.2964,232.88,232.74,27.62766662]
[1737945234789,4.2964,232.88,232.75,0.78818197]
[1737945234988,4.2966,232.87,232.69,1.3173]
[1737945235192,4.2966,232.87,232.7,0.78816485]
[1737945235594,0.0274504,232.81,232.76,0.02705285]
[1737945237894,0.0274504,232.81,232.79,4.298]
[1737945238291,0.0274504,232.81,232.76,0.02705285]
[1737945238896,0.0274504,232.81,232.79,4.298]
[1737945239091,4.2968,232.86,232.76,0.02705285]
[1737945239298,27.62766662,232.95,232.76,0.02705285]
[1737945239696,27.62766662,232.95,232.71,0.78834627]
[1737945240096,27.62766662,232.95,232.83,4.2973]
[1737945240395,4.2959,232.91,232.77,27.62766662]
[1737945240597,0.02783151,232.91,232.89,4.2961]
[1737945240794,4.2944,232.99,232.81,27.62766662]
[1737945240995,8.5849,233.1,232.88,0.02906746]
[1737945240996,0.03001439,232.92,232.88,0.02906746]
[1737945241195,8.5849,233.1,232.89,27.62766662]
[1737945241393,8.5849,233.1,232.82,2.7391]
[1737945241394,27.62766662,232.99,232.82,2.7391]
[1737945241793,27.62766662,232.99,232.92,4.2956]
[1737945241991,27.62766662,233.03,232.82,2.7391]
[1737945242192,27.62766662,233.07,232.85,27.62766662]
[1737945242396,8.5849,233.1,232.82,2.7391]
[1737945242397,0.02836959,232.95,232.9,0.02992816]
[1737945242592,8.5849,233.1,232.9,0.02992816]
[1737945242799,4.2929,233.07,232.89,27.62766662]
[1737945243195,4.2929,233.07,232.9,0.78766779]
[1737945243400,4.2929,233.07,232.89,27.62766662]
[1737945243597,4.2929,233.07,233.01,4.2939]
[1737945243803,4.2929,233.07,232.96,0.02714012]
[1737945243996,0.03098666,233.06,232.89,27.62766662]
[1737945244197,0.03098666,233.06,232.82,2.7391]
[1737945244198,27.62766662,233.03,232.82,2.7391]
[1737945244501,27.62766662,232.98,232.82,2.7391]
[1737945244701,4.2951,232.95,232.82,2.7391]
[1737945245304,4.2951,232.95,232.9,4.2959]
[1737945245497,0.02970641,232.91,232.86,0.03151571]
[1737945247806,0.02970641,232.91,232.89,4.2961]
[1737945248009,4.2937,233.03,232.86,0.03151571]
[1737945248211,4.2937,233.03,232.89,27.62766662]
[1737945249205,0.02944882,232.98,232.94,0.02800186]
[1737945249507,27.62766662,233.11,232.94,0.02800186]
[1737945249703,27.62766662,233.11,232.94,1.36220186]
[1737945249905,4.2927,233.08,232.98,4.2945]
[1737945250098,4.2927,233.08,232.94,1.3342]
[1737945250298,27.62766662,233.11,232.94,1.3342]
[1737945250501,4.2933,233.05,232.98,4.2945]
[1737945250805,0.03124086,233.04,233.0,0.0283031]
[1737945252097,4.2918,233.13,233.0,0.0283031]
[1737945252600,27.62766662,233.11,233.04,4.2934]
[1737945252805,27.62766662,233.11,233.0,0.0283031]
[1737945253001,27.62766662,233.11,232.95,1.3533]
[1737945253206,4.2925,233.09,232.95,1.3533]
[1737945253506,0.03027156,233.07,233.03,0.03070697]
[1737945254409,27.65793818,233.07,232.91,80.32]
[1737945254605,16.98789544,233.05,232.91,80.32]
[1737945255108,4.2939,233.02,232.91,80.32]
[1737945255712,0.03016673,232.99,232.98,4.2945]
[1737945256108,16.98789544,233.17,232.94,0.03088871]
[1737945256403,16.98789544,233.17,232.95,16.98789544]
[1737945256803,4.2908,233.19,232.99,16.98789544]
[1737945257003,4.2908,233.19,233.09,4.2925]
[1737945257409,0.02911069,233.12,233.09,4.2925]
[1737945258109,0.02911069,233.12,233.07,0.03204218]
[1737945258409,4.2927,233.08,232.95,0.85855333]
[1737945259509,0.03256272,233.04,232.99,0.02828526]
[1737945262007,1.4023,233.16,233.01,16.98789544]
[1737945262306,4.2911,233.17,233.01,16.98789544]
[1737945263215,0.03061233,233.08,233.01,16.98789544]
[1737945263404,0.03061233,233.08,232.99,0.02828526]
[1737945266511,4.32331233,233.08,232.99,0.02828526]
[1737945266707,0.03061233,233.08,232.99,0.02828526]
[1737945266913,0.03061233,233.08,233.01,16.98789544]
[1737945267106,0.03061233,233.08,232.99,0.02828526]
[1737945267611,4.2923,233.1,233.01,16.98789544]
[1737945267813,4.2923,233.1,233.05,16.98789544]
[1737945268015,4.2923,233.1,233.06,1.3535]
[1737945268813,4.32064912,233.1,233.06,1.38093237]
[1737945269210,4.2901,233.22,233.06,1.38093237]
[1737945269714,4.2901,233.22,233.06,1.3535]
[1737945270511,0.02942452,233.16,233.12,0.03283251]
[1737945271809,4.2887,233.3,233.13,16.98789544]
[1737945272015,4.2887,233.3,233.17,16.98789544]
[1737945272219,4.2887,233.3,233.13,16.98789544]
[1737945272513,4.2887,233.3,233.06,1.3535]
[1737945272514,1.4006,233.38,233.17,16.98789544]
[1737945272707,5.6878,233.38,233.21,16.98789544]
[1737945272913,0.03255238,233.3,233.25,0.03173034]
[1737945276517,0.03255238,233.3,233.25,17.01962578]
[1737945276818,4.1206,233.45,233.29,16.98789544]
[1737945277219,4.1206,233.45,233.25,16.98789544]
[1737945277517,17.1468,233.41,233.25,16.98789544]
[1737945278013,17.1468,233.41,233.31,0.02745406]
[1737945278315,0.03224256,233.35,233.31,0.02745406]
[1737945278520,0.03224256,233.35,233.33,16.98789544]
[1737945278921,12.8602,233.41,233.33,16.98789544]
[1737945279321,12.8602,233.41,233.37,16.98789544]
[1737945279621,4.2858,233.46,233.4,4.2868]
[1737945280122,0.02882418,233.45,233.41,0.02921898]
[1737945280322,21.4282,233.47,233.41,0.02921898]
[1737945280517,5.707548,233.62,233.46,4.2835]
[1737945280817,5.707548,233.62,233.49,16.98789544]
[1737945281122,5.707548,233.62,233.47,1.4141]
[1737945281123,87.1147,233.67,233.53,16.98789544]
[1737945281321,88.4371,233.67,233.53,16.98789544]
[1737945281519,0.03166088,233.62,233.58,0.03039569]
[1737945283017,0.03166088,233.62,233.61,4.2829]
[1737945286323,0.03166088,233.62,233.44,16.98789544]
[1737945286524,0.03166088,233.62,233.42,80.24]
[1737945286823,16.98789544,233.63,233.42,80.24]
[1737945287628,102.62749544,233.67,233.44,16.98789544]
[1737945287927,0.02890104,233.55,233.5,0.0302372]
[1737945288332,85.6396,233.67,233.6,4.283]
[1737945288625,0.0278081,233.55,233.52,16.98789544]
[1737945288822,85.6396,233.67,233.53,1.3809]
[1737945289029,85.6396,233.67,233.66,4.282]
[1737945289426,85.6396,233.67,233.54,1.3805]
[1737945289622,85.6396,233.67,233.62,4.2827]
[1737945289825,85.6396,233.67,233.49,18.38939544]
[1737945290026,85.66934426,233.67,233.62,0.03260712]
[1737945290432,85.6396,233.67,233.6,4.2831]
[1737945290726,85.66657868,233.67,233.62,0.03103422]
[1737945291332,85.66657868,233.67,233.63,4.2825]
[1737945291531,85.66657868,233.67,233.62,0.03103422]
[1737945292331,89.94837868,233.67,233.62,0.03103422]
[1737945296827,85.66657868,233.67,233.62,0.03103422]
[1737945297937,85.66657868,233.67,233.5,27.45299742]
[1737945298139,113.1195761,233.67,233.49,2.782]
[1737945298339,113.09259742,233.67,233.49,2.782]
[1737945299138,0.03156636,233.6,233.56,0.03095759]
[1737945300737,0.03156636,233.6,233.29,10.32067268]
[1737945300738,0.03156636,233.6,233.42,1.4557]
[1737945300940,113.09259742,233.67,233.42,1.4557]
[1737945301139,4.2837,233.58,233.42,1.4557]
[1737945301538,113.09259742,233.67,233.42,1.4557]
[1737945301737,4.2822,233.65,233.49,27.45299742]
[1737945302041,0.03137767,233.57,233.52,0.02784198]
[1737945302344,0.03137767,233.57,233.53,27.45299742]
[1737945302642,85.6396,233.67,233.53,28.85189742]
[1737945302838,85.6396,233.67,233.52,0.02784198]
[1737945303037,85.6396,233.67,233.43,1.3956]
[1737945303038,27.45299742,233.63,233.43,1.3956]
[1737945303237,27.45299742,233.59,233.42,1.4557]
[1737945303434,2.6847,233.58,233.37,28.79069742]
[1737945303643,27.45299742,233.51,233.48,0.0311152]
[1737945303844,27.45299742,233.51,233.29,10.33628746]
[1737945304039,27.45299742,233.51,233.29,27.45299742]
[1737945304240,27.45299742,233.51,233.33,27.45299742]
[1737945304437,27.45299742,233.55,233.33,27.45299742]
[1737945304633,4.2856,233.47,233.28,27.45299742]
[1737945305040,0.03018945,233.43,233.38,0.03126049]
[1737945307038,0.03018945,233.43,233.24,27.45299742]
[1737945307344,27.45299742,233.43,233.25,0.78647669]
[1737945307544,27.45299742,233.43,233.24,27.45299742]
[1737945307944,4.2873,233.38,233.21,1.355]
[1737945308142,27.45299742,233.38,233.21,1.355]
[1737945308339,0.0292068,233.32,233.27,0.0272124]
[1737945308646,0.0292068,233.32,233.13,1.355]
[1737945308848,4.2887,233.3,233.13,1.355]
[1737945309148,4.2887,233.3,233.16,27.45299742]
[1737945309649,4.2896,233.25,233.11,1.432]
[1737945309846,4.32221377,233.25,233.21,0.03125307]
[1737945310043,0.03261377,233.25,233.23,4.2899]
[1737945311250,0.03261377,233.25,233.21,0.03125307]
[1737945312149,0.03261377,233.25,233.11,1.432]
[1737945312353,0.03261377,233.25,233.08,1.355]